fUSD/lending_fUSD_20240301
["ID","MTS","AMOUNT","RATE_DAILY","PERIOD"]
[315933216,1709290253571,-3249.27,0.00022191,2]
[315933217,1709290253581,-500.0,0.00022191,2]
[315933218,1709290253591,-2131.91,0.00022191,2]
[315933219,1709290253601,-556.17,0.00022191,2]
[315933220,1709290253611,-1229.75,0.00022191,2]
[315933221,1709290253621,-1382.16,0.00022191,2]
[315933222,1709290253631,-1547.67,0.00022191,2]
[315933223,1709290253641,-500.0,0.00022191,2]
[315933224,1709290253651,-779.25,0.00022191,2]
[315933225,1709290253661,-500.0,0.00022191,2]
[315933226,1709290253670,-770.87,0.00022191,2]
[315933227,1709290253680,-500.0,0.00022191,2]
[315933228,1709290253690,-746.13,0.00022191,2]
[315933229,1709290253701,-922.39,0.00022191,2]
[315933230,1709290253712,-1116.54299304,0.00022191,2]
[315933231,1709290253726,-1.33700696,0.00022191,2]
[315933232,1709290253737,-573.9,0.00022191,2]
[315933233,1709290253749,-8543.43,0.00022191,2]
[315933234,1709290253759,-997.33299304,0.00022191,2]
[315933235,1709290253776,-553.16683146,0.00022191,2]
[315933236,1709290253813,-588.27992481,0.00022191,2]
[315933237,1709290253825,-1948.53025069,0.00022191,2]
[315933238,1709290253836,-500.0,0.00022191,2]
[315933239,1709290253848,-508.41,0.00022191,2]
[315933240,1709290253858,-500.0,0.00022191,2]
[315933241,1709290253872,-500.0,0.00022191,2]
[315933242,1709290253883,-602.04,0.00022191,2]
[315933243,1709290253893,-500.0,0.00022191,2]
[315933244,1709290253904,-1063.57,0.00022191,2]
[315933245,1709290253914,-3.36907206,0.00022191,2]
[315933246,1709290281058,9013.16323754,9e-05,2]
[315933247,1709290346526,657.33610934,9e-05,2]
[315933248,1709290366535,656.67152926,9e-05,2]
[315933254,1709291035521,-408.7844706,9.999e-05,2]
[315933255,1709291035545,-4975.26098245,0.0001,2]
[315933256,1709291035569,-159.60156024,0.000109,2]
[315933257,1709291035591,-1614.03403843,0.00011,2]
[315933258,1709291035615,-159.60156022,0.00011855,2]
[315933259,1709291035639,-159.60156022,0.00012811,2]
[315933260,1709291035663,-159.60156022,0.00013766,2]
[315933261,1709291035686,-159.60156022,0.00014721,2]
[315933262,1709291035709,-159.60156022,0.00015677,2]
[315933263,1709291035733,-206.0,0.00016173,2]
[315933264,1709291035755,-539.65,0.00016173,2]
[315933265,1709291035778,-499.99,0.00016631,2]
[315933266,1709291035801,-150.0,0.00016631,2]
[315933267,1709291035825,-159.60156022,0.00016632,2]
[315933268,1709291035847,-2902.9,0.00016632,2]
[315933269,1709291035869,-575.55,0.00016632,2]
[315933270,1709291035891,-796.81,0.00017455,2]
[315933271,1709291035916,-159.60156022,0.00017587,2]
[315933272,1709291035939,-489.98,0.00018294,2]
[315933273,1709291035962,-210.0,0.00018294,2]
[315933274,1709291035985,-283.25,0.00018345,2]
[315933275,1709291036008,-209.64,0.00018414,2]
[315933276,1709291036032,-159.60156022,0.00018543,2]
[315933277,1709291036054,-250.0,0.00018762,2]
[315933278,1709291036079,-185.93,0.00019057,2]
[315933279,1709291036106,-189.21,0.00019126,10]
[315933280,1709291036129,-250.0,0.00019178,2]
[315933281,1709291036154,-500.0,0.00019178,2]
[315933282,1709291036180,-206.0,0.00019303,6]
[315933283,1709291036203,-4769.0,0.0001948,2]
[315933284,1709291036227,-159.60156022,0.00019498,2]
[315933285,1709291036251,-23900.0,0.00019621,2]
[315933286,1709291036274,-796.81,0.00019718,2]
[315933287,1709291036298,-671.7174,0.00019898,2]
[315933288,1709291036320,-877.0804,0.00019898,2]
[315933289,1709291036343,-350.0,0.0002,3]
[315933290,1709291036367,-293.0,0.00020124,2]
[315933291,1709291036391,-222.62,0.00020158,2]
[315933292,1709291036415,-159.60156022,0.00020453,2]
[315933293,1709291036438,-152.0,0.00020551,2]
[315933294,1709291036462,-979.0,0.00020551,2]
[315933295,1709291036486,-226.0,0.00020551,2]
[315933296,1709291036510,-283.25,0.00020638,2]
[315933297,1709291036533,-2592.9455,0.000208,2]
[315933298,1709291036556,-222.62,0.00020871,2]
[315933299,1709291036583,-227.17,0.0002089,2]
[315933300,1709291036606,-227.17,0.0002099,2]
[315933301,1709291036630,-978.87924302,0.00020999,2]
[315933302,1709291036654,-711.390726,0.00021,2]
[315933303,1709291036677,-44320.74007706,0.00021,2]
[315933304,1709291044125,-100000.0,0.00021,2]
[315933305,1709291056268,-91061.73894284,0.00021,2]
[315933306,1709291056291,-711.390726,0.00021,2]
[315933307,1709291056343,-489.98,0.00021033,2]
[315933308,1709291056367,-553.74,0.00021096,2]
[315933309,1709291056391,-716.75,0.00021219,2]
[315933310,1709291056415,-227.17,0.0002136,2]
[315933311,1709291056438,-3922.0,0.0002137,2]
[315933312,1709291056463,-159.60156022,0.00021409,2]
[315933313,1709291056486,-150.0,0.0002143,2]
[315933314,1709291056509,-150.0,0.0002143,2]
[315933315,1709291056532,-150.0,0.0002143,2]
[315933316,1709291056554,-150.0,0.0002143,2]
[315933317,1709291056576,-150.0,0.0002143,2]
[315933318,1709291056597,-150.0,0.0002143,2]
[315933319,1709291056619,-150.0,0.0002143,2]
[315933320,1709291056641,-150.0,0.0002143,2]
[315933321,1709291056665,-150.0,0.0002143,2]
[315933322,1709291056687,-213.44648198,0.0002143,2]
[315933323,1709291056712,-594.18228896,0.00021454,6]
[315933324,1709291057535,-648.0128044,0.00021454,6]
[315933325,1709291057559,-424.53,0.0002146,2]
[315933326,1709291057582,-424.53,0.0002146,2]
[315933327,1709291057603,-424.53,0.0002146,2]
[315933328,1709291057626,-1242.19509336,0.00021462,6]
[315933329,1709291057648,-823.3,0.00021482,2]
[315933330,1709291057671,-413.8,0.00021482,2]
[315933331,1709291057693,-150.0,0.00021482,2]
[315933332,1709291057715,-150.0,0.00021482,2]
[315933333,1709291057738,-413.8,0.00021482,2]
[315933334,1709291057761,-1242.19509336,0.00021484,6]
[315933335,1709291057784,-1242.19509336,0.00021494,6]
[315933336,1709291057806,-5709.0,0.000215,2]
[315933337,1709291057828,-222.62,0.00021584,2]
[315933338,1709291057850,-413.8,0.000216,2]
[315933339,1709291057872,-12829.29728444,0.000218,2]
[315933340,1709291057895,-5520.20100123,0.000218,2]
[315933341,1709291057918,-2000.0,0.000219,2]
[315933342,1709291057940,-750.0,0.000219,2]
[315933343,1709291057963,-227.17,0.00021907,2]
[315933344,1709291057985,-248.8163673,0.00021916,2]
[315933345,1709291058008,-184.07528779,0.00021916,2]
[315933346,1709291058030,-1000.0,0.00021916,2]
[315933347,1709291058053,-35363.64638688,0.00021917,4]
[315933348,1709291058076,-500.0,0.00021917,2]
[315933349,1709291058102,-500.0,0.00021917,2]
[315933350,1709291058125,-500.0,0.00021917,2]
[315933351,1709291058148,-500.0,0.00021917,2]
[315933352,1709291058171,-500.0,0.00021917,2]
[315933353,1709291058198,-500.0,0.00021917,2]
[315933354,1709291058221,-500.0,0.00021917,2]
[315933355,1709291058243,-500.0,0.00021917,2]
[315933356,1709291058267,-500.0,0.00021917,2]
[315933357,1709291058503,-500.0,0.00021917,2]
[315933358,1709291058528,-704.87,0.00021917,2]
[315933359,1709291058552,-500.0,0.00021917,2]
[315933360,1709291058575,-522.31,0.00021917,2]
[315933361,1709291058599,-500.0,0.00021917,2]
[315933362,1709291058622,-500.0,0.00021917,2]
[315933363,1709291058646,-500.0,0.00021917,2]
[315933364,1709291058669,-711.03,0.00021917,2]
[315933365,1709291058693,-500.0,0.00021917,2]
[315933366,1709291058715,-500.0,0.00021917,2]
[315933367,1709291058739,-500.0,0.00021917,2]
[315933368,1709291058761,-500.0,0.00021917,2]
[315933369,1709291058786,-503.85,0.00021917,2]
[315933370,1709291058809,-500.0,0.00021917,2]
[315933371,1709291058831,-500.0,0.00021917,2]
[315933372,1709291058854,-500.0,0.00021917,2]
[315933373,1709291058877,-595.75,0.00021917,2]
[315933374,1709291058901,-500.0,0.00021917,2]
[315933375,1709291058925,-761.6,0.00021917,2]
[315933376,1709291058948,-807.06,0.00021917,2]
[315933377,1709291058971,-500.0,0.00021917,2]
[315933378,1709291058994,-500.0,0.00021917,2]
[315933379,1709291059017,-500.0,0.00021917,2]
[315933380,1709291059041,-500.0,0.00021917,2]
[315933381,1709291059065,-500.0,0.00021917,2]
[315933382,1709291059089,-500.0,0.00021917,2]
[315933383,1709291059116,-500.0,0.00021917,2]
[315933384,1709291059140,-500.0,0.00021917,2]
[315933385,1709291059164,-705.08,0.00021917,2]
[315933386,1709291059190,-557.41,0.00021917,2]
[315933387,1709291059212,-500.0,0.00021917,2]
[315933388,1709291059241,-500.0,0.00021917,2]
[315933389,1709291059265,-500.0,0.00021917,2]
[315933390,1709291059288,-500.0,0.00021917,2]
[315933391,1709291059311,-500.0,0.00021917,2]
[315933392,1709291059334,-500.0,0.00021917,2]
[315933393,1709291059357,-500.0,0.00021917,2]
[315933394,1709291059379,-500.0,0.00021917,2]
[315933395,1709291059402,-500.0,0.00021917,2]
[315933396,1709291059435,-500.0,0.00021917,2]
[315933397,1709291059461,-500.0,0.00021917,2]
[315933398,1709291059485,-500.0,0.00021917,2]
[315933399,1709291059507,-830.2,0.00021917,2]
[315933400,1709291059530,-233.12558788,0.00021917,2]
[315933401,1709291059641,-266.87441212,0.00021917,2]
[315933402,1709291059665,-506.17,0.00021917,2]
[315933403,1709291059688,-583.78,0.00021917,2]
[315933404,1709291059711,-500.0,0.00021917,2]
[315933405,1709291059734,-500.0,0.00021917,2]
[315933406,1709291059758,-1116.3,0.00021917,2]
[315933407,1709291059781,-500.0,0.00021917,2]
[315933408,1709291059806,-500.0,0.00021917,2]
[315933409,1709291059829,-500.0,0.00021917,2]
[315933410,1709291059853,-500.0,0.00021917,2]
[315933411,1709291059875,-500.0,0.00021917,2]
[315933412,1709291059899,-1625.24,0.00021917,2]
[315933413,1709291059923,-585.57,0.00021917,2]
[315933414,1709291059946,-500.0,0.00021917,2]
[315933415,1709291059969,-500.0,0.00021917,2]
[315933416,1709291059993,-500.0,0.00021917,2]
[315933417,1709291060016,-867.58,0.00021917,2]
[315933418,1709291060040,-500.0,0.00021917,2]
[315933419,1709291060063,-500.0,0.00021917,2]
[315933420,1709291060087,-500.0,0.00021917,2]
[315933421,1709291060110,-500.0,0.00021917,2]
[315933422,1709291060134,-500.0,0.00021917,2]
[315933423,1709291060159,-551.92,0.00021917,2]
[315933424,1709291060184,-500.0,0.00021917,2]
[315933425,1709291060208,-500.0,0.00021917,2]
[315933426,1709291060232,-500.0,0.00021917,2]
[315933427,1709291060255,-500.0,0.00021917,2]
[315933428,1709291060284,-1105.12,0.00021917,2]
[315933429,1709291060308,-500.0,0.00021917,2]
[315933430,1709291060332,-500.0,0.00021917,2]
[315933431,1709291060355,-500.0,0.00021917,2]
[315933432,1709291060378,-645.89,0.00021917,2]
[315933433,1709291060401,-500.0,0.00021917,2]
[315933434,1709291060425,-594.9,0.00021917,2]
[315933435,1709291060448,-500.0,0.00021917,2]
[315933436,1709291060471,-561.56,0.00021917,2]
[315933437,1709291060498,-500.0,0.00021917,2]
[315933438,1709291060521,-500.0,0.00021917,2]
[315933439,1709291060544,-500.0,0.00021917,2]
[315933440,1709291060567,-500.0,0.00021917,2]
[315933441,1709291060591,-500.0,0.00021917,2]
[315933442,1709291060614,-628.02775062,0.00021917,2]
[315933443,1709291060637,-500.0,0.00021917,2]
[315933444,1709291060661,-509.83,0.00021917,2]
[315933445,1709291060684,-500.0,0.00021917,2]
[315933446,1709291060708,-517.03,0.00021917,2]
[315933447,1709291060731,-500.0,0.00021917,2]
[315933448,1709291060754,-526.07,0.00021917,2]
[315933449,1709291060781,-500.0,0.00021917,2]
[315933450,1709291060805,-500.0,0.00021917,2]
[315933451,1709291060829,-500.0,0.00021917,2]
[315933452,1709291060852,-500.0,0.00021917,2]
[315933453,1709291060876,-500.0,0.00021917,2]
[315933454,1709291060899,-500.0,0.00021917,2]
[315933455,1709291060923,-500.0,0.00021917,2]
[315933456,1709291060950,-500.0,0.00021917,2]
[315933457,1709291060974,-500.0,0.00021917,2]
[315933458,1709291060998,-500.0,0.00021917,2]
[315933459,1709291061021,-500.0,0.00021917,2]
[315933460,1709291061051,-687.33,0.00021917,2]
[315933461,1709291061075,-500.0,0.00021917,2]
[315933462,1709291061101,-500.0,0.00021917,2]
[315933463,1709291061125,-500.0,0.00021917,2]
[315933464,1709291061150,-500.0,0.00021917,2]
[315933465,1709291061175,-500.0,0.00021917,2]
[315933466,1709291061201,-706.63,0.00021917,2]
[315933467,1709291061227,-500.0,0.00021917,2]
[315933468,1709291061261,-500.0,0.00021917,2]
[315933469,1709291061292,-500.0,0.00021917,2]
[315933470,1709291061321,-500.0,0.00021917,2]
[315933471,1709291061349,-500.0,0.00021917,2]
[315933472,1709291061659,-153.72,0.00021917,2]
[315933473,1709291061688,-596.48,0.00021917,2]
[315933474,1709291061715,-500.0,0.00021917,2]
[315933475,1709291061743,-500.0,0.00021917,2]
[315933476,1709291061766,-500.0,0.00021917,2]
[315933477,1709291061790,-500.0,0.00021917,2]
[315933478,1709291061814,-500.0,0.00021917,2]
[315933479,1709291061837,-500.0,0.00021917,2]
[315933480,1709291061860,-500.0,0.00021917,2]
[315933481,1709291061883,-216.79937359,0.00021917,2]
[315933482,1709291061907,-500.0,0.00021917,2]
[315933483,1709291061935,-500.0,0.00021917,2]
[315933484,1709291061957,-500.0,0.00021917,2]
[315933485,1709291061980,-500.0,0.00021917,2]
[315933486,1709291062003,-614.3,0.00021917,2]
[315933487,1709291062028,-500.0,0.00021917,2]
[315933488,1709291062051,-500.0,0.00021917,2]
[315933489,1709291062074,-519.87597703,0.00021917,2]
[315933490,1709291062099,-500.0,0.00021917,2]
[315933491,1709291062123,-500.0,0.00021917,2]
[315933492,1709291062146,-500.0,0.00021917,2]
[315933493,1709291062172,-685.64,0.00021917,2]
[315933494,1709291062195,-500.0,0.00021917,2]
[315933495,1709291062219,-505.92,0.00021917,2]
[315933496,1709291062243,-500.0,0.00021917,2]
[315933497,1709291062266,-511.86576091,0.00021917,2]
[315933498,1709291062290,-410.58290976,0.00021917,2]
[315933499,1709291062313,-500.0,0.00021917,2]
[315933500,1709291062336,-500.0,0.00021917,2]
[315933501,1709291062359,-500.0,0.00021917,2]
[315933502,1709291062382,-500.0,0.00021917,2]
[315933503,1709291062404,-500.0,0.00021917,2]
[315933504,1709291062428,-500.0,0.00021917,2]
[315933505,1709291062452,-731.41,0.00021917,2]
[315933506,1709291062475,-461.88199736,0.00021917,2]
[315933507,1709291062498,-500.0,0.00021917,2]
[315933508,1709291062522,-500.0,0.00021917,2]
[315933509,1709291062545,-500.0,0.00021917,2]
[315933510,1709291062569,-500.0,0.00021917,2]
[315933511,1709291062593,-500.0,0.00021917,2]
[315933512,1709291062617,-500.0,0.00021917,2]
[315933513,1709291062642,-500.0,0.00021917,2]
[315933514,1709291062666,-3142.13,0.00021917,2]
[315933515,1709291062691,-542.99,0.00021917,2]
[315933516,1709291062722,-500.0,0.00021917,2]
[315933517,1709291062752,-505.43928012,0.00021917,2]
[315933518,1709291062777,-996.71,0.00021917,2]
[315933519,1709291062804,-500.0,0.00021917,2]
[315933520,1709291062837,-500.0,0.00021917,2]
[315933521,1709291062860,-500.0,0.00021917,2]
[315933522,1709291062886,-500.0,0.00021917,2]
[315933523,1709291062910,-500.0,0.00021917,2]
[315933524,1709291062934,-567.32,0.00021917,2]
[315933525,1709291062959,-615.88,0.00021917,2]
[315933526,1709291062984,-500.0,0.00021917,2]
[315933527,1709291063008,-500.0,0.00021917,2]
[315933528,1709291063032,-500.0,0.00021917,2]
[315933529,1709291063057,-500.0,0.00021917,2]
[315933530,1709291063081,-704.78,0.00021917,2]
[315933531,1709291063107,-500.0,0.00021917,2]
[315933532,1709291063130,-863.93,0.00021917,2]
[315933533,1709291063155,-500.0,0.00021917,2]
[315933534,1709291063180,-500.0,0.00021917,2]
[315933535,1709291063205,-500.0,0.00021917,2]
[315933536,1709291063229,-500.0,0.00021917,2]
[315933537,1709291063252,-500.0,0.00021917,2]
[315933538,1709291063276,-551.87,0.00021917,2]
[315933539,1709291063299,-500.0,0.00021917,2]
[315933540,1709291063324,-500.0,0.00021917,2]
[315933541,1709291063348,-500.0,0.00021917,2]
[315933542,1709291063371,-510.42,0.00021917,2]
[315933543,1709291063395,-812.76,0.00021917,2]
[315933544,1709291063420,-500.0,0.00021917,2]
[315933545,1709291063443,-500.0,0.00021917,2]
[315933546,1709291063467,-1545.54,0.00021917,2]
[315933547,1709291063491,-500.0,0.00021917,2]
[315933548,1709291063514,-1024.72,0.00021917,2]
[315933549,1709291063541,-500.0,0.00021917,2]
[315933550,1709291063569,-507.47,0.00021917,2]
[315933551,1709291063597,-500.0,0.00021917,2]
[315933552,1709291063621,-500.0,0.00021917,2]
[315933553,1709291063647,-7831.48,0.00021917,2]
[315933554,1709291063673,-500.0,0.00021917,2]
[315933555,1709291063697,-601.45516038,0.00021917,2]
[315933556,1709291063721,-500.0,0.00021917,2]
[315933557,1709291063746,-500.0,0.00021917,2]
[315933558,1709291063770,-714.31,0.00021917,2]
[315933559,1709291063795,-1127.27,0.00021917,2]
[315933560,1709291063819,-658.98,0.00021917,2]
[315933561,1709291063843,-500.0,0.00021917,2]
[315933562,1709291063867,-974.93,0.00021917,2]
[315933563,1709291063891,-500.0,0.00021917,2]
[315933564,1709291063916,-205.31737811,0.00021917,2]
[315933565,1709291064845,-333.74262189,0.00021917,2]
[315933566,1709291064871,-500.0,0.00021917,2]
[315933567,1709291064895,-500.0,0.00021917,2]
[315933568,1709291064918,-500.0,0.00021917,2]
[315933569,1709291064943,-500.0,0.00021917,2]
[315933570,1709291064967,-500.0,0.00021917,2]
[315933571,1709291064992,-824.65,0.00021917,2]
[315933572,1709291065015,-827.92,0.00021917,2]
[315933573,1709291065038,-500.0,0.00021917,2]
[315933574,1709291065061,-500.0,0.00021917,2]
[315933575,1709291065083,-586.5,0.00021917,2]
[315933576,1709291065110,-3746.7,0.00021917,2]
[315933577,1709291065133,-500.0,0.00021917,2]
[315933578,1709291065156,-500.0,0.00021917,2]
[315933579,1709291065182,-500.0,0.00021917,2]
[315933580,1709291065205,-581.66,0.00021917,2]
[315933581,1709291065229,-500.0,0.00021917,2]
[315933582,1709291065254,-696.86,0.00021917,2]
[315933583,1709291065277,-500.0,0.00021917,2]
[315933584,1709291065301,-500.0,0.00021917,2]
[315933585,1709291065326,-1893.63,0.00021917,2]
[315933586,1709291065350,-500.0,0.00021917,2]
[315933587,1709291065374,-500.0,0.00021917,2]
[315933588,1709291065397,-500.0,0.00021917,2]
[315933589,1709291065422,-2051.6,0.00021917,2]
[315933590,1709291065448,-500.0,0.00021917,2]
[315933591,1709291065473,-500.0,0.00021917,2]
[315933592,1709291065497,-500.0,0.00021917,2]
[315933593,1709291065520,-500.0,0.00021917,2]
[315933594,1709291065543,-1016.21,0.00021917,2]
[315933595,1709291065566,-500.0,0.00021917,2]
[315933596,1709291065589,-500.0,0.00021917,2]
[315933597,1709291065612,-744.84,0.00021917,2]
[315933598,1709291065637,-618.01,0.00021917,2]
[315933599,1709291065661,-1038.98,0.00021917,2]
[315933600,1709291065693,-1276.24,0.00021917,2]
[315933601,1709291065716,-1125.06,0.00021917,2]
[315933602,1709291065739,-500.0,0.00021917,2]
[315933603,1709291065762,-500.0,0.00021917,2]
[315933604,1709291065783,-500.0,0.00021917,2]
[315933605,1709291065818,-500.0,0.00021917,2]
[315933606,1709291065845,-500.0,0.00021917,2]
[315933607,1709291065870,-500.0,0.00021917,2]
[315933608,1709291065894,-500.0,0.00021917,2]
[315933609,1709291065918,-343.61153101,0.00021917,2]
[315933610,1709291065944,-569.41,0.00021917,2]
[315933611,1709291065970,-500.0,0.00021917,2]
[315933612,1709291065994,-500.0,0.00021917,2]
[315933613,1709291066018,-500.0,0.00021917,2]
[315933614,1709291066045,-500.0,0.00021917,2]
[315933615,1709291066070,-602.94,0.00021917,2]
[315933616,1709291066098,-500.0,0.00021917,2]
[315933617,1709291066122,-500.0,0.00021917,2]
[315933618,1709291066147,-1710.32,0.00021917,2]
[315933619,1709291066173,-500.0,0.00021917,2]
[315933620,1709291066197,-500.0,0.00021917,2]
[315933621,1709291066221,-500.0,0.00021917,2]
[315933622,1709291066246,-500.0,0.00021917,2]
[315933623,1709291066271,-500.0,0.00021917,2]
[315933624,1709291066296,-500.0,0.00021917,2]
[315933625,1709291066319,-500.0,0.00021917,2]
[315933626,1709291066343,-587.49,0.00021917,2]
[315933627,1709291066367,-500.0,0.00021917,2]
[315933628,1709291066392,-679.52,0.00021917,2]
[315933629,1709291066417,-1270.64,0.00021917,2]
[315933630,1709291066442,-500.0,0.00021917,2]
[315933631,1709291066468,-500.0,0.00021917,2]
[315933632,1709291066492,-500.0,0.00021917,2]
[315933633,1709291066515,-527.89204766,0.00021917,2]
[315933634,1709291066538,-500.0,0.00021917,2]
[315933635,1709291066563,-1161.83,0.00021917,2]
[315933636,1709291066587,-1014.35,0.00021917,2]
[315933637,1709291066612,-500.0,0.00021917,2]
[315933638,1709291066635,-500.0,0.00021917,2]
[315933639,1709291066659,-500.0,0.00021917,2]
[315933640,1709291066683,-561.65,0.00021917,2]
[315933641,1709291066707,-705.5,0.00021917,2]
[315933642,1709291066731,-1517.62,0.00021917,2]
[315933643,1709291066754,-500.0,0.00021917,2]
[315933644,1709291066779,-533.38805702,0.00021917,2]
[315933645,1709291066803,-3914.5,0.00021917,2]
[315933646,1709291066828,-860.43,0.00021917,2]
[315933647,1709291066852,-500.0,0.00021917,2]
[315933648,1709291066876,-500.0,0.00021917,2]
[315933649,1709291066899,-500.0,0.00021917,2]
[315933650,1709291066923,-633.84,0.00021917,2]
[315933651,1709291066946,-500.0,0.00021917,2]
[315933652,1709291066969,-500.0,0.00021917,2]
[315933653,1709291066993,-816.26,0.00021917,2]
[315933654,1709291067016,-563.26601854,0.00021917,2]
[315933655,1709291067039,-500.0,0.00021917,2]
[315933656,1709291067063,-1670.36,0.00021917,2]
[315933657,1709291067086,-500.0,0.00021917,2]
[315933658,1709291067110,-500.0,0.00021917,2]
[315933659,1709291067133,-500.0,0.00021917,2]
[315933660,1709291067156,-500.0,0.00021917,2]
[315933661,1709291067182,-500.0,0.00021917,2]
[315933662,1709291067205,-500.0,0.00021917,2]
[315933663,1709291067229,-500.0,0.00021917,2]
[315933664,1709291067253,-831.77,0.00021917,2]
[315933665,1709291067279,-500.0,0.00021917,2]
[315933666,1709291067303,-2389.88,0.00021917,2]
[315933667,1709291067326,-500.0,0.00021917,2]
[315933668,1709291067351,-284.8084589,0.00021917,2]
[315933669,1709291067376,-500.0,0.00021917,2]
[315933670,1709291067401,-500.0,0.00021917,2]
[315933671,1709291067425,-933.91,0.00021917,2]
[315933672,1709291067449,-1366.06,0.00021917,2]
[315933673,1709291067472,-784.38,0.00021917,2]
[315933674,1709291067501,-514.36,0.00021917,2]
[315933675,1709291067525,-2178.51,0.00021917,2]
[315933676,1709291067549,-500.0,0.00021917,2]
[315933677,1709291067573,-500.0,0.00021917,2]
[315933678,1709291067596,-995.96,0.00021917,2]
[315933679,1709291067619,-500.0,0.00021917,2]
[315933680,1709291067641,-594.20748119,0.00021917,2]
[315933681,1709291067664,-500.0,0.00021917,2]
[315933682,1709291067688,-500.0,0.00021917,2]
[315933683,1709291067711,-899.02,0.00021917,2]
[315933684,1709291067735,-500.0,0.00021917,2]
[315933685,1709291067767,-1660.36,0.00021917,2]
[315933686,1709291067793,-2151.84,0.00021917,2]
[315933687,1709291067817,-8488.75,0.00021917,2]
[315933688,1709291067841,-500.0,0.00021917,2]
[315933689,1709291067868,-500.0,0.00021917,2]
[315933690,1709291067901,-318.76378379,0.00021917,2]
[315933691,1709291068327,-150.0,0.000216,2]
[315933692,1709291068356,-484.09621621,0.00021917,2]
[315933693,1709291068389,-500.0,0.00021917,2]
[315933694,1709291068417,-588.4,0.00021917,2]
[315933695,1709291068447,-633.02,0.00021917,2]
[315933696,1709291068476,-528.32,0.00021917,2]
[315933697,1709291068507,-6052.05,0.00021917,2]
[315933698,1709291068540,-500.0,0.00021917,2]
[315933699,1709291068568,-495.35945314,0.00021917,2]
[315933700,1709291068593,-6393.43,0.00021917,2]
[315933701,1709291068623,-4741.68,0.00021917,2]
[315933702,1709291068652,-500.0,0.00021917,2]
[315933703,1709291068686,-500.0,0.00021917,2]
[315933704,1709291068714,-500.0,0.00021917,2]
[315933705,1709291068740,-252.16,0.00021917,2]
[315933706,1709291068782,-1915.6,0.00021917,2]
[315933707,1709291068813,-500.0,0.00021917,2]
[315933708,1709291068846,-500.0,0.00021917,2]
[315933709,1709291068877,-846.77,0.00021917,2]
[315933710,1709291068907,-500.0,0.00021917,2]
[315933711,1709291068938,-500.0,0.00021917,2]
[315933712,1709291068968,-1803.95,0.00021917,2]
[315933713,1709291068999,-636.57,0.00021917,2]
[315933714,1709291069029,-500.0,0.00021917,2]
[315933715,1709291069060,-500.0,0.00021917,2]
[315933716,1709291069092,-500.0,0.00021917,2]
[315933717,1709291069124,-500.0,0.00021917,2]
[315933718,1709291069154,-500.0,0.00021917,2]
[315933719,1709291069198,-1678.42,0.00021917,2]
[315933720,1709291069231,-661.91,0.00021917,2]